[Event "Austria Championship Blitz 2024"]
[Site "Innsbruck"]
[Date "2024.06.01"]
[Round "7.13"]
[White "Zanon, Magnus"]
[Black "Kummer, Helmut"]
[Result "1-0"]
[ECO "A45"]
[WhiteElo "2092"]
[BlackElo "2212"]
[Annotator "RC"]
[PlyCount "65"]
[EventDate "2024.06.01"]
[EventType "swiss"]
[EventCountry "AUT"]
[SourceTitle "playchess.com"]
[Source "ChessBase"]
[SourceQuality "1"]
[TimeControl "180+2"]

1. d4 {[%emt 0:00:02]} Nf6 {[%emt 0:00:01]} 2. Bg5 {[%emt 0:00:01]} c5 {[%emt 0:00:04]} 3. d5 {[%emt 0:00:10]} d6 {[%emt 0:00:09]} 4. Nc3 {[%emt 0:00:08]} Nbd7 {[%emt 0:00:05]} 5. e4 {[%emt 0:00:02]} g6 {[%emt 0:00:03]} 6. Nf3 {[%emt 0:00:03]} Bg7 {[%emt 0:00:01]} 7. Be2 {[%emt 0:00:02]} O-O {[%emt 0:00:04]} 8. O-O {[%emt 0:00:02]} a6 {[%emt 0:00:14]} 9. a4 {[%emt 0:00:01]} h6 {[%emt 0:00:21]} 10. Bf4 {[%emt 0:00:08]} Ng4 {[%emt 0:00:05]} 11. h3 {[%emt 0:00:10]} Nge5 {[%emt 0:00:03]} 12. Nxe5 {[%emt 0:00:06]} Nxe5 {[%emt 0:00:01]} 13. Qd2 {[%emt 0:00:07]} Kh7 {[%emt 0:00:01]} 14. Be3 {[%emt 0:00:07]} f5 {[%emt 0:00:23]} 15. f4 {[%emt 0:00:04]} Nf7 {[%emt 0:00:01]} 16. Bd3 {[%emt 0:00:07]} fxe4 {[%emt 0:00:04]} 17. Bxe4 {[%emt 0:00:03]} Bf5 {[%emt 0:00:01]} 18. Qd3 {[%emt 0:00:04]} Qd7 {[%emt 0:00:18]} 19. Rae1 {[%emt 0:00:15]} Rae8 {[%emt 0:00:22]} 20. g4 {[%emt 0:00:34]} Bxe4 {[%emt 0:00:05]} 21. Qxe4 {[%emt 0:00:01]} e6 {[%emt 0:00:17]} 22. Qf3 {[%emt 0:00:11]} e5 {[%emt 0:00:04]} 23. f5 {[%emt 0:00:05]} gxf5 {[%emt 0:00:03]} 24. gxf5 {[%emt 0:00:01]} Bf6 {[%emt 0:00:12]} 25. Ne4 {[%emt 0:00:03]} Qe7 {[%emt 0:00:01]} 26. Kh1 {[%emt 0:00:03]} Rg8 {[%emt 0:00:01]} 27. Rg1 {[%emt 0:00:01]} Rxg1+ {[%emt 0:00:02]} 28. Rxg1 {[%emt 0:00:01]} Rg8 {[%emt 0:00:05]} 29. Rxg8 Kxg8 {[%emt 0:00:01]} 30. Qh5 {[%emt 0:00:07]} Bg5 {[%emt 0:00:27]} 31. Qg6+ {[%emt 0:00:07]} Kf8 {[%emt 0:00:01]} 32. Bxg5 {[%emt 0:00:24]} hxg5 {[%emt 0:00:01]} 33. f6 {[%emt 0:00:10]} 1-0

[Event "Austria Championship Blitz 2024"]
[Site "Innsbruck"]
[Date "2024.06.01"]
[Round "7.14"]
[White "Polterauer, Chiara"]
[Black "Teuschler, Barbara"]
[Result "1-0"]
[ECO "B45"]
[WhiteElo "2136"]
[BlackElo "2040"]
[Annotator "RC"]
[PlyCount "35"]
[EventDate "2024.06.01"]
[EventType "swiss"]
[EventCountry "AUT"]
[SourceTitle "playchess.com"]
[Source "ChessBase"]
[SourceQuality "1"]
[TimeControl "180+2"]

1. e4 {[%emt 0:00:01]} c5 {[%emt 0:00:00]} 2. Nf3 {[%emt 0:00:01]} e6 {[%emt 0:00:02]} 3. d4 {[%emt 0:00:01]} cxd4 {[%emt 0:00:01]} 4. Nxd4 {[%emt 0:00:00]} Nf6 {[%emt 0:00:00]} 5. Nc3 {[%emt 0:00:01]} Nc6 {[%emt 0:00:01]} 6. Be2 {[%emt 0:00:02]} Bb4 {[%emt 0:00:05]} 7. Nxc6 {[%emt 0:00:16]} bxc6 {[%emt 0:00:11]} 8. e5 {[%emt 0:00:02]} Ne4 {[%emt 0:00:42]} 9. Qd4 {[%emt 0:00:18]} Nxc3 {[%emt 0:00:02]} 10. bxc3 {[%emt 0:00:02]} Be7 {[%emt 0:00:14]} 11. O-O {[%emt 0:00:03]} O-O {[%emt 0:00:01]} 12. Qg4 {[%emt 0:00:06]} Kh8 {[%emt 0:00:05]} 13. Bd3 {[%emt 0:00:03]} f5 {[%emt 0:00:02]} 14. exf6 {[%emt 0:00:11]} Bxf6 {[%emt 0:00:16]} 15. Qh5 {[%emt 0:00:05]} g6 {[%emt 0:00:11]} 16. Bxg6 {[%emt 0:00:03]} Qe7 {[%emt 0:00:00]} 17. Ba3 {[%emt 0:00:12]} Kg7 {[%emt 0:00:16]} 18. Qxh7# {[%emt 0:02:11]} 1-0

[Event "Austria Championship Blitz 2024"]
[Site "Innsbruck"]
[Date "2024.06.01"]
[Round "7.15"]
[White "Kranzl, Peter"]
[Black "Wimmer, Michael"]
[Result "1-0"]
[ECO "C44"]
[WhiteElo "2157"]
[BlackElo "2142"]
[Annotator "RC"]
[PlyCount "47"]
[EventDate "2024.06.01"]
[EventType "swiss"]
[EventCountry "AUT"]
[SourceTitle "playchess.com"]
[Source "ChessBase"]
[SourceQuality "1"]
[TimeControl "180+2"]

1. e4 {[%emt 0:00:02]} e5 {[%emt 0:00:02]} 2. Nf3 {[%emt 0:00:01]} Nc6 {[%emt 0:00:01]} 3. c3 {[%emt 0:00:02]} Nf6 {[%emt 0:00:09]} 4. d4 {[%emt 0:00:02]} exd4 {[%emt 0:00:09]} 5. e5 {[%emt 0:00:02]} Ne4 {[%emt 0:00:15]} 6. Qe2 {[%emt 0:00:02]} Nc5 {[%emt 0:00:25]} 7. cxd4 {[%emt 0:00:03]} Ne6 {[%emt 0:00:06]} 8. Qe4 {[%emt 0:00:20]} Qe7 {[%emt 0:00:32]} 9. Nc3 {[%emt 0:00:17]} Nb4 {[%emt 0:00:51]} 10. a3 {[%emt 0:00:15]} Na6 {[%emt 0:00:07]} 11. Bxa6 {[%emt 0:00:13]} c5 {[%emt 0:00:24]} 12. Bc4 {[%emt 0:00:09]} Nc7 {[%emt 0:00:06]} 13. Bg5 {[%emt 0:00:10]} d5 {[%emt 0:00:15]} 14. exd6 {[%emt 0:00:12]} Qxe4+ {[%emt 0:00:04]} 15. Nxe4 {[%emt 0:00:02]} Ne6 {[%emt 0:00:01]} 16. dxc5 {[%emt 0:00:16]} Bd7 {[%emt 0:00:04]} 17. Be3 {[%emt 0:00:10]} Rc8 {[%emt 0:00:02]} 18. b4 {[%emt 0:00:03]} a6 {[%emt 0:00:00]} 19. O-O {[%emt 0:00:04]} h6 {[%emt 0:00:02]} 20. Rfe1 {[%emt 0:00:03]} f5 {[%emt 0:00:04]} 21. Ng3 {[%emt 0:00:06]} g6 {[%emt 0:00:01]} 22. Nd4 {[%emt 0:00:01]} Kf7 {[%emt 0:00:01]} 23. Nxe6 {[%emt 0:00:03]} Bxe6 {[%emt 0:00:01]} 24. Bxe6+ {[%emt 0:00:01]} 1-0

[Event "Austria Championship Blitz 2024"]
[Site "Innsbruck"]
[Date "2024.06.01"]
[Round "7.16"]
[White "Schwarz, Benedikt"]
[Black "Schnegg, Anna-Lena"]
[Result "1-0"]
[ECO "B06"]
[WhiteElo "1919"]
[BlackElo "2124"]
[Annotator "RC"]
[PlyCount "67"]
[EventDate "2024.06.01"]
[EventType "swiss"]
[EventCountry "AUT"]
[SourceTitle "playchess.com"]
[Source "ChessBase"]
[SourceQuality "1"]
[TimeControl "180+2"]

1. d4 {[%emt 0:00:01]} g6 {[%emt 0:00:00]} 2. Bf4 {[%emt 0:00:02]} Bg7 {[%emt 0:00:01]} 3. Nc3 {[%emt 0:00:04]} d6 {[%emt 0:00:01]} 4. e4 {[%emt 0:00:01]} Nd7 {[%emt 0:00:01]} 5. Nf3 {[%emt 0:00:06]} e5 {[%emt 0:00:10]} 6. dxe5 {[%emt 0:00:03]} dxe5 {[%emt 0:00:01]} 7. Be3 {[%emt 0:00:10]} Ngf6 {[%emt 0:00:08]} 8. Qd2 {[%emt 0:00:02]} O-O {[%emt 0:00:45]} 9. O-O-O {[%emt 0:00:03]} Qe7 {[%emt 0:00:07]} 10. Bh6 {[%emt 0:00:20]} c6 {[%emt 0:00:07]} 11. Bxg7 Kxg7 {[%emt 0:00:01]} 12. h4 {[%emt 0:00:20]} Nc5 {[%emt 0:00:01]} 13. Bd3 {[%emt 0:00:14]} Bg4 {[%emt 0:00:05]} 14. Rdg1 {[%emt 0:00:19]} Bxf3 {[%emt 0:00:30]} 15. gxf3 {[%emt 0:00:02]} Nh5 {[%emt 0:00:01]} 16. Rg5 {[%emt 0:00:18]} f6 {[%emt 0:00:16]} 17. Rgg1 {[%emt 0:00:04]} Ne6 {[%emt 0:00:06]} 18. Ne2 {[%emt 0:00:12]} Kh8 {[%emt 0:00:00]} 19. Ng3 {[%emt 0:00:06]} Nef4 {[%emt 0:00:02]} 20. Be2 {[%emt 0:00:18]} Rad8 {[%emt 0:00:35]} 21. Qe3 {[%emt 0:00:02]} b6 {[%emt 0:00:14]} 22. Nxh5 {[%emt 0:00:02]} Nxh5 {[%emt 0:00:02]} 23. Bc4 {[%emt 0:00:08]} b5 {[%emt 0:00:01]} 24. Bb3 {[%emt 0:00:02]} a5 {[%emt 0:00:01]} 25. a3 {[%emt 0:00:05]} c5 {[%emt 0:00:01]} 26. c3 {[%emt 0:00:06]} b4 {[%emt 0:00:03]} 27. Rd1 {[%emt 0:00:03]} bxa3 {[%emt 0:00:04]} 28. bxa3 {[%emt 0:00:14]} Rb8 {[%emt 0:00:00]} 29. Kc2 {[%emt 0:00:08]} c4 {[%emt 0:00:06]} 30. Bxc4 {[%emt 0:00:03]} Qxa3 {[%emt 0:00:01]} 31. Rb1 {[%emt 0:00:06]} a4 {[%emt 0:00:10]} 32. Qa7 {[%emt 0:00:08]} Qd6 {[%emt 0:00:14]} 33. Rhd1 {[%emt 0:00:01]} Rxb1 {[%emt 0:00:00]} 34. Rxb1 1-0

[Event "Austria Championship Blitz 2024"]
[Site "Innsbruck"]
[Date "2024.06.01"]
[Round "7.17"]
[White "Gutmann, Alois"]
[Black "Casagrande, Harald"]
[Result "0-1"]
[ECO "C11"]
[WhiteElo "1985"]
[BlackElo "2290"]
[Annotator "RC"]
[PlyCount "62"]
[EventDate "2024.06.01"]
[EventType "swiss"]
[EventCountry "AUT"]
[SourceTitle "playchess.com"]
[Source "ChessBase"]
[SourceQuality "1"]
[TimeControl "180+2"]

1. Nc3 {[%emt 0:00:01]} Nf6 {[%emt 0:00:01]} 2. e4 {[%emt 0:00:00]} d5 {[%emt 0:00:01]} 3. e5 {[%emt 0:00:01]} Nfd7 {[%emt 0:00:12]} 4. d4 {[%emt 0:00:13]} e6 {[%emt 0:00:02]} 5. Nce2 {[%emt 0:00:05]} c5 {[%emt 0:00:02]} 6. c3 {[%emt 0:00:01]} Nc6 {[%emt 0:00:00]} 7. Nf3 {[%emt 0:00:01]} Qb6 {[%emt 0:00:13]} 8. a3 {[%emt 0:00:14]} a5 {[%emt 0:00:30]} 9. Rb1 {[%emt 0:00:24]} a4 {[%emt 0:00:06]} 10. g3 {[%emt 0:00:02]} Be7 {[%emt 0:00:13]} 11. Bh3 {[%emt 0:00:01]} O-O {[%emt 0:00:04]} 12. O-O {[%emt 0:00:01]} Nd8 {[%emt 0:00:48]} 13. Nf4 {[%emt 0:00:13]} cxd4 {[%emt 0:00:35]} 14. cxd4 {[%emt 0:00:02]} Bxa3 {[%emt 0:00:08]} 15. Qd3 {[%emt 0:00:21]} Be7 {[%emt 0:00:02]} 16. Be3 {[%emt 0:00:18]} Nc6 {[%emt 0:00:04]} 17. Rfc1 {[%emt 0:00:30]} Nb4 {[%emt 0:00:01]} 18. Qd2 {[%emt 0:00:01]} Rd8 {[%emt 0:00:04]} 19. Nh5 {[%emt 0:00:08]} g6 {[%emt 0:00:16]} 20. Nf4 {[%emt 0:00:13]} Nf8 {[%emt 0:00:09]} 21. Nd3 {[%emt 0:00:16]} Bd7 {[%emt 0:00:02]} 22. Bg5 {[%emt 0:00:17]} Bxg5 {[%emt 0:00:04]} 23. Nxg5 {[%emt 0:00:05]} Nxd3 24. Qxd3 {[%emt 0:00:01]} Bb5 {[%emt 0:00:04]} 25. Qd2 {[%emt 0:00:01]} Be8 {[%emt 0:00:01]} 26. Rc5 {[%emt 0:00:07]} a3 {[%emt 0:00:04]} 27. b4 {[%emt 0:00:04]} Rdc8 {[%emt 0:00:06]} 28. Rbc1 {[%emt 0:00:01]} Rxc5 {[%emt 0:00:01]} 29. bxc5 {[%emt 0:00:01]} Qb2 {[%emt 0:00:01]} 30. Qf4 {[%emt 0:00:02]} a2 {[%emt 0:00:02]} 31. Qf6 {[%emt 0:00:16]} Qxc1+ {[%emt 0:00:08]} 0-1

[Event "Austria Championship Blitz 2024"]
[Site "Innsbruck"]
[Date "2024.06.01"]
[Round "7.18"]
[White "Khalakhan, Jurij"]
[Black "Kuzmanovic, Zeljko"]
[Result "0-1"]
[ECO "C41"]
[WhiteElo "2175"]
[BlackElo "1866"]
[Annotator "RC"]
[PlyCount "66"]
[EventDate "2024.06.01"]
[EventType "swiss"]
[EventCountry "AUT"]
[SourceTitle "playchess.com"]
[Source "ChessBase"]
[SourceQuality "1"]
[TimeControl "180+2"]

1. e4 {[%emt 0:00:01]} Nf6 {[%emt 0:00:00]} 2. Nc3 {[%emt 0:00:01]} d6 {[%emt 0:00:04]} 3. d4 {[%emt 0:00:01]} Nbd7 {[%emt 0:00:01]} 4. Nf3 {[%emt 0:00:01]} e5 {[%emt 0:00:01]} 5. Bc4 {[%emt 0:00:01]} Be7 {[%emt 0:00:03]} 6. Bxf7+ {[%emt 0:00:02]} Kxf7 {[%emt 0:00:04]} 7. Ng5+ {[%emt 0:00:01]} Kg8 {[%emt 0:00:10]} 8. Ne6 {[%emt 0:00:01]} Qe8 {[%emt 0:00:09]} 9. Nxc7 {[%emt 0:00:01]} Qg6 {[%emt 0:00:07]} 10. Be3 {[%emt 0:00:02]} Rb8 {[%emt 0:00:15]} 11. Qd3 {[%emt 0:00:01]} exd4 {[%emt 0:00:11]} 12. Bxd4 {[%emt 0:00:11]} Ne5 {[%emt 0:00:01]} 13. Qb5 {[%emt 0:01:01]} Bd7 {[%emt 0:00:10]} 14. Qb3+ {[%emt 0:00:02]} Qf7 {[%emt 0:00:08]} 15. N3d5 {[%emt 0:00:01]} Nxd5 {[%emt 0:00:21]} 16. Nxd5 {[%emt 0:00:01]} Be6 {[%emt 0:00:00]} 17. O-O-O {[%emt 0:00:07]} Nc6 {[%emt 0:00:11]} 18. Bc3 {[%emt 0:00:07]} b5 {[%emt 0:00:09]} 19. Kb1 {[%emt 0:00:15]} b4 {[%emt 0:00:04]} 20. Be1 {[%emt 0:00:07]} Bf6 {[%emt 0:00:11]} 21. f4 {[%emt 0:00:02]} Nd4 {[%emt 0:00:06]} 22. Qe3 {[%emt 0:00:14]} Bxd5 {[%emt 0:00:13]} 23. exd5 {[%emt 0:00:04]} Re8 {[%emt 0:00:04]} 24. Qf2 {[%emt 0:00:33]} Re2 {[%emt 0:01:07]} 25. Rxd4 {[%emt 0:00:21]} Rxf2 {[%emt 0:00:00]} 26. Rxb4 {[%emt 0:00:01]} Re2 {[%emt 0:00:00]} 27. Bg3 {[%emt 0:00:20]} h5 {[%emt 0:00:00]} 28. f5 {[%emt 0:00:05]} Qxd5 {[%emt 0:00:00]} 29. Rc1 {[%emt 0:00:08]} Kh7 {[%emt 0:00:00]} 30. Bf4 {[%emt 0:00:01]} Re7 {[%emt 0:00:00]} 31. h3 {[%emt 0:00:01]} Rb7 {[%emt 0:00:00]} 32. Rxb7 {[%emt 0:00:02]} Qxb7 {[%emt 0:00:00]} 33. g4 Qxb2# {[%emt 0:00:00]} 0-1

[Event "Austria Championship Blitz 2024"]
[Site "Innsbruck"]
[Date "2024.06.01"]
[Round "7.19"]
[White "Tumanyan, Gor"]
[Black "Kondrak, Christoph"]
[Result "1-0"]
[ECO "B43"]
[WhiteElo "1992"]
[BlackElo "1972"]
[Annotator "RC"]
[PlyCount "111"]
[EventDate "2024.06.01"]
[EventType "swiss"]
[EventCountry "AUT"]
[SourceTitle "playchess.com"]
[Source "ChessBase"]
[SourceQuality "1"]
[TimeControl "180+2"]

1. e4 {[%emt 0:00:01]} c5 {[%emt 0:00:01]} 2. Nf3 {[%emt 0:00:01]} e6 {[%emt 0:00:00]} 3. d4 {[%emt 0:00:01]} cxd4 {[%emt 0:00:01]} 4. Nxd4 {[%emt 0:00:01]} a6 {[%emt 0:00:01]} 5. Nc3 {[%emt 0:00:04]} b5 {[%emt 0:00:01]} 6. Be3 {[%emt 0:00:06]} Bb7 {[%emt 0:00:01]} 7. f3 {[%emt 0:00:02]} Qc7 {[%emt 0:00:07]} 8. a3 {[%emt 0:00:12]} Nf6 {[%emt 0:00:02]} 9. Be2 {[%emt 0:00:10]} Nc6 {[%emt 0:00:02]} 10. Qd2 {[%emt 0:00:23]} Rc8 {[%emt 0:00:04]} 11. Rd1 {[%emt 0:00:07]} Be7 {[%emt 0:00:49]} 12. O-O {[%emt 0:00:07]} O-O {[%emt 0:00:10]} 13. Kh1 {[%emt 0:00:05]} Rfd8 {[%emt 0:00:09]} 14. f4 {[%emt 0:00:56]} d5 {[%emt 0:00:08]} 15. e5 {[%emt 0:00:03]} Nd7 {[%emt 0:00:07]} 16. Qe1 {[%emt 0:00:07]} g6 {[%emt 0:00:12]} 17. Qg3 {[%emt 0:00:07]} Na5 {[%emt 0:00:11]} 18. h4 {[%emt 0:00:10]} Nc4 {[%emt 0:00:06]} 19. Bc1 {[%emt 0:00:02]} Nxa3 {[%emt 0:00:08]} 20. h5 {[%emt 0:00:15]} b4 {[%emt 0:00:08]} 21. hxg6 {[%emt 0:00:12]} hxg6 {[%emt 0:00:01]} 22. Nxe6 {[%emt 0:00:08]} Qb6 {[%emt 0:00:24]} 23. Nxd8 {[%emt 0:00:28]} Rxd8 24. Nxd5 {[%emt 0:00:00]} Bxd5 {[%emt 0:00:05]} 25. Rxd5 {[%emt 0:00:00]} Nf8 {[%emt 0:00:20]} 26. Rxd8 {[%emt 0:00:00]} Qxd8 {[%emt 0:00:01]} 27. Rd1 {[%emt 0:00:00]} Qc7 {[%emt 0:00:10]} 28. bxa3 {[%emt 0:00:00]} Qxc2 {[%emt 0:00:07]} 29. Qd3 {[%emt 0:00:00]} Qc6 {[%emt 0:00:14]} 30. axb4 {[%emt 0:00:01]} Bxb4 {[%emt 0:00:02]} 31. Bf3 {[%emt 0:00:03]} Qe6 {[%emt 0:00:04]} 32. Ba3 {[%emt 0:00:02]} Bxa3 {[%emt 0:00:03]} 33. Qxa3 {[%emt 0:00:14]} Kg7 {[%emt 0:00:01]} 34. Qd6 {[%emt 0:00:00]} Qf5 {[%emt 0:00:02]} 35. Qd4 {[%emt 0:00:00]} Ne6 {[%emt 0:00:01]} 36. Qe4 {[%emt 0:00:00]} Qxf4 {[%emt 0:00:02]} 37. Qxf4 {[%emt 0:00:00]} Nxf4 {[%emt 0:00:01]} 38. Ra1 {[%emt 0:00:01]} Nd3 {[%emt 0:00:02]} 39. Ra5 {[%emt 0:00:03]} g5 {[%emt 0:00:01]} 40. Be2 {[%emt 0:00:03]} Nf4 {[%emt 0:00:02]} 41. Bf1 {[%emt 0:00:01]} Ng6 {[%emt 0:00:02]} 42. Bxa6 {[%emt 0:00:02]} Kf8 {[%emt 0:00:02]} 43. Bd3 {[%emt 0:00:02]} Nf4 {[%emt 0:00:02]} 44. Bf1 {[%emt 0:00:01]} Ke7 {[%emt 0:00:01]} 45. g3 {[%emt 0:00:01]} Ng6 {[%emt 0:00:05]} 46. Kg2 {[%emt 0:00:01]} Ke6 {[%emt 0:00:01]} 47. Bc4+ {[%emt 0:00:00]} Kf5 {[%emt 0:00:01]} 48. Bd3+ {[%emt 0:00:01]} Ke6 {[%emt 0:00:01]} 49. Bxg6 fxg6 {[%emt 0:00:01]} 50. Ra6+ {[%emt 0:00:02]} Kxe5 {[%emt 0:00:01]} 51. Rxg6 {[%emt 0:00:01]} Kf5 {[%emt 0:00:01]} 52. Ra6 {[%emt 0:00:01]} g4 {[%emt 0:00:01]} 53. Ra5+ {[%emt 0:00:01]} Kf6 {[%emt 0:00:02]} 54. Kf2 {[%emt 0:00:01]} Ke6 {[%emt 0:00:01]} 55. Ke3 {[%emt 0:00:01]} Kf6 {[%emt 0:00:00]} 56. Ke4 {[%emt 0:00:23]} 1-0

[Event "Austria Championship Blitz 2024"]
[Site "Innsbruck"]
[Date "2024.06.01"]
[Round "7.21"]
[White "Keferboeck, Jewgeni"]
[Black "Stadlinger, Lea"]
[Result "1-0"]
[ECO "C88"]
[WhiteElo "1957"]
[BlackElo "1912"]
[Annotator "RC"]
[PlyCount "101"]
[EventDate "2024.06.01"]
[EventType "swiss"]
[EventCountry "AUT"]
[SourceTitle "playchess.com"]
[Source "ChessBase"]
[SourceQuality "1"]
[TimeControl "180+2"]

1. e4 {[%emt 0:00:01]} e5 {[%emt 0:00:01]} 2. Nf3 {[%emt 0:00:01]} Nc6 {[%emt 0:00:01]} 3. Bb5 {[%emt 0:00:01]} a6 {[%emt 0:00:01]} 4. Ba4 {[%emt 0:00:01]} Nf6 {[%emt 0:00:03]} 5. O-O {[%emt 0:00:02]} Be7 {[%emt 0:00:10]} 6. Re1 {[%emt 0:00:01]} b5 {[%emt 0:00:01]} 7. Bb3 {[%emt 0:00:01]} O-O {[%emt 0:00:04]} 8. h3 {[%emt 0:00:01]} d5 {[%emt 0:00:03]} 9. exd5 {[%emt 0:00:03]} Nxd5 {[%emt 0:00:01]} 10. Nxe5 {[%emt 0:00:02]} Nxe5 {[%emt 0:00:03]} 11. Rxe5 {[%emt 0:00:01]} c6 {[%emt 0:00:01]} 12. d4 {[%emt 0:00:48]} Bd6 {[%emt 0:00:01]} 13. Re1 {[%emt 0:00:02]} Qh4 {[%emt 0:00:09]} 14. Qf3 {[%emt 0:00:39]} Be6 {[%emt 0:01:25]} 15. Be3 {[%emt 0:00:40]} Rae8 {[%emt 0:00:16]} 16. Nc3 {[%emt 0:00:08]} Nxe3 {[%emt 0:00:06]} 17. Rxe3 {[%emt 0:00:14]} g5 {[%emt 0:00:17]} 18. Bxe6 {[%emt 0:00:21]} fxe6 {[%emt 0:00:01]} 19. Qe2 {[%emt 0:00:19]} h5 {[%emt 0:00:09]} 20. Ne4 {[%emt 0:00:01]} Bf4 {[%emt 0:00:03]} 21. g3 {[%emt 0:00:08]} Qxh3 {[%emt 0:00:02]} 22. gxf4 {[%emt 0:00:01]} Qh4 {[%emt 0:00:07]} 23. fxg5 {[%emt 0:00:02]} Rf4 {[%emt 0:00:02]} 24. Re1 {[%emt 0:00:04]} Rg4+ {[%emt 0:00:06]} 25. Ng3 {[%emt 0:00:03]} Qxg5 {[%emt 0:00:02]} 26. Rxe6 {[%emt 0:00:05]} Rf8 {[%emt 0:00:03]} 27. Re3 {[%emt 0:00:03]} h4 {[%emt 0:00:01]} 28. Kh2 {[%emt 0:00:02]} hxg3+ {[%emt 0:00:01]} 29. fxg3 {[%emt 0:00:01]} Qh6+ {[%emt 0:00:06]} 30. Kg2 {[%emt 0:00:00]} Qg6 {[%emt 0:00:06]} 31. Rf3 {[%emt 0:00:01]} Rxf3 {[%emt 0:00:04]} 32. Qxf3 {[%emt 0:00:01]} Rxd4 {[%emt 0:00:02]} 33. Re2 {[%emt 0:00:02]} Rg4 {[%emt 0:00:04]} 34. Rf2 {[%emt 0:00:00]} Kh7 {[%emt 0:00:06]} 35. Qf7+ {[%emt 0:00:01]} Kh6 {[%emt 0:00:07]} 36. Qxg6+ {[%emt 0:00:01]} Rxg6 {[%emt 0:00:01]} 37. Rf5 {[%emt 0:00:03]} Rd6 {[%emt 0:00:02]} 38. Rc5 {[%emt 0:00:01]} a5 {[%emt 0:00:02]} 39. Kf3 {[%emt 0:00:01]} Kg6 {[%emt 0:00:01]} 40. Ke4 {[%emt 0:00:01]} Re6+ {[%emt 0:00:03]} 41. Kf4 {[%emt 0:00:01]} Rf6+ {[%emt 0:00:02]} 42. Ke5 {[%emt 0:00:02]} Rf5+ {[%emt 0:00:03]} 43. Kd6 {[%emt 0:00:01]} Rf6+ {[%emt 0:00:06]} 44. Kc7 {[%emt 0:00:02]} Rf3 {[%emt 0:00:05]} 45. Kxc6 {[%emt 0:00:02]} Kf7 {[%emt 0:00:02]} 46. Kxb5 {[%emt 0:00:02]} Rxg3 {[%emt 0:00:02]} 47. Kxa5 {[%emt 0:00:02]} Rg2 {[%emt 0:00:02]} 48. a4 {[%emt 0:00:01]} Ke6 {[%emt 0:00:01]} 49. b4 {[%emt 0:00:01]} Kd6 {[%emt 0:00:01]} 50. Kb6 {[%emt 0:00:01]} Rg4 {[%emt 0:00:02]} 51. c3 {[%emt 0:00:01]} 1-0

[Event "Austria Championship Blitz 2024"]
[Site "Innsbruck"]
[Date "2024.06.01"]
[Round "7.22"]
[White "Guba, Viktor"]
[Black "Erhard, Jakob"]
[Result "1-0"]
[ECO "B10"]
[WhiteElo "1891"]
[BlackElo "2057"]
[Annotator "RC"]
[PlyCount "113"]
[EventDate "2024.06.01"]
[EventType "swiss"]
[EventCountry "AUT"]
[SourceTitle "playchess.com"]
[Source "ChessBase"]
[SourceQuality "1"]
[TimeControl "180+2"]

1. e4 {[%emt 0:03:04]} c6 2. Nf3 {[%emt 0:00:00]} d5 3. exd5 cxd5 {[%emt 0:00:03]} 4. Ne5 {[%emt 0:00:00]} Nc6 {[%emt 0:00:02]} 5. d4 {[%emt 0:00:00]} Nf6 {[%emt 0:00:05]} 6. Bb5 {[%emt 0:00:00]} Bd7 {[%emt 0:00:01]} 7. Nxd7 {[%emt 0:00:00]} Qxd7 {[%emt 0:00:01]} 8. c3 {[%emt 0:00:00]} e6 {[%emt 0:00:01]} 9. O-O {[%emt 0:00:00]} Bd6 {[%emt 0:00:01]} 10. f4 {[%emt 0:00:00]} O-O {[%emt 0:00:05]} 11. Nd2 {[%emt 0:00:00]} a6 {[%emt 0:00:02]} 12. Bd3 {[%emt 0:00:00]} b5 {[%emt 0:00:03]} 13. Nf3 {[%emt 0:00:00]} Ne4 {[%emt 0:00:02]} 14. Ne5 {[%emt 0:00:00]} Qc7 {[%emt 0:00:08]} 15. Bxe4 {[%emt 0:00:00]} dxe4 {[%emt 0:00:02]} 16. Qe2 {[%emt 0:00:00]} f5 {[%emt 0:00:01]} 17. Be3 {[%emt 0:00:00]} Rfc8 {[%emt 0:00:09]} 18. Rac1 {[%emt 0:00:00]} Ne7 {[%emt 0:00:01]} 19. b3 {[%emt 0:00:00]} Nd5 {[%emt 0:00:08]} 20. c4 {[%emt 0:00:00]} bxc4 {[%emt 0:00:11]} 21. bxc4 {[%emt 0:00:00]} Nb4 {[%emt 0:00:08]} 22. a3 {[%emt 0:00:00]} Bxe5 {[%emt 0:00:10]} 23. axb4 {[%emt 0:00:00]} Bf6 {[%emt 0:00:02]} 24. b5 {[%emt 0:00:00]} Rd8 {[%emt 0:00:01]} 25. Rfd1 {[%emt 0:00:00]} Rd7 {[%emt 0:00:05]} 26. c5 {[%emt 0:00:00]} axb5 {[%emt 0:00:06]} 27. Qxb5 {[%emt 0:00:00]} Rad8 {[%emt 0:00:01]} 28. Qc4 {[%emt 0:00:00]} Rd5 {[%emt 0:00:02]} 29. Ra1 {[%emt 0:00:00]} h6 {[%emt 0:00:03]} 30. Ra6 {[%emt 0:00:00]} Kf7 {[%emt 0:00:08]} 31. Qa4 {[%emt 0:00:06]} R8d7 {[%emt 0:00:03]} 32. c6 {[%emt 0:00:08]} Re7 {[%emt 0:00:01]} 33. Bc1 {[%emt 0:00:04]} Kg6 {[%emt 0:00:12]} 34. g3 {[%emt 0:00:13]} Re8 {[%emt 0:00:00]} 35. Ra7 {[%emt 0:00:05]} Qc8 {[%emt 0:00:09]} 36. c7 {[%emt 0:00:05]} Re7 {[%emt 0:00:01]} 37. Qc4 {[%emt 0:00:07]} Red7 {[%emt 0:00:04]} 38. Be3 {[%emt 0:00:05]} e5 {[%emt 0:00:21]} 39. fxe5 {[%emt 0:00:07]} Bxe5 {[%emt 0:00:01]} 40. Rc1 {[%emt 0:00:04]} Bxd4 {[%emt 0:00:02]} 41. Bxd4 {[%emt 0:00:01]} Rxd4 {[%emt 0:00:02]} 42. Qe6+ {[%emt 0:00:01]} Kg5 {[%emt 0:00:07]} 43. h4+ {[%emt 0:00:02]} Kg4 {[%emt 0:00:04]} 44. Qg6+ {[%emt 0:00:00]} Kh3 {[%emt 0:00:09]} 45. Qxf5+ {[%emt 0:00:02]} Kxg3 {[%emt 0:00:02]} 46. Qf2+ {[%emt 0:00:06]} Kg4 {[%emt 0:00:01]} 47. Qg2+ {[%emt 0:00:02]} Kxh4 {[%emt 0:00:10]} 48. Qf2+ {[%emt 0:00:04]} Kg4 {[%emt 0:00:01]} 49. Qe2+ {[%emt 0:00:04]} Kg5 {[%emt 0:00:07]} 50. Rc5+ {[%emt 0:00:03]} R7d5 {[%emt 0:00:01]} 51. Rxd5+ {[%emt 0:00:02]} Rxd5 {[%emt 0:00:01]} 52. Qe3+ {[%emt 0:00:02]} Kg6 {[%emt 0:00:03]} 53. Qxe4+ {[%emt 0:00:02]} Rf5 {[%emt 0:00:04]} 54. Ra5 {[%emt 0:00:05]} Kf6 {[%emt 0:00:10]} 55. Qxf5+ {[%emt 0:00:01]} Qxf5 56. Rxf5+ {[%emt 0:00:09]} Kxf5 {[%emt 0:00:05]} 57. c8=Q+ {[%emt 0:00:00]} 1-0